[Event "25th Zadar Open 2018"]
[Site "Zadar"]
[Date "2018.12.16"]
[Round "3.20"]
[White "Paszewski, Mateusz"]
[Black "Pallitsch, Clemens"]
[Result "0-1"]
[ECO "B48"]
[WhiteElo "2342"]
[BlackElo "2176"]
[Annotator "ChessBase"]
[PlyCount "182"]
[EventDate "2018.12.15"]
[EventType "swiss"]
[EventCountry "CRO"]
[SourceTitle "playchess.com"]
[Source "ChessBase"]
[SourceQuality "1"]
[TimeControl "40/5400+30:1800+30"]

1. e4 {[%emt 0:00:30]} c5 {[%emt 0:00:30]} 2. Nf3 {[%emt 0:00:00]} e6 {[%emt 0:00:00]} 3. d4 {[%emt 0:01:00]} cxd4 {[%emt 0:00:00]} 4. Nxd4 {[%emt 0:00:30]} Nc6 {[%emt 0:00:30]} 5. Nc3 {[%emt 0:00:00]} Qc7 {[%emt 0:00:00]} 6. Be3 {[%emt 0:02:00]} a6 {[%emt 0:01:00]} 7. Qf3 {[%emt 0:01:30]} Nf6 {[%emt 0:02:30]} 8. O-O-O {[%emt 0:00:30]} Be7 {[%emt 0:01:30]} 9. Be2 {[%emt 0:02:30]} Nxd4 {[%emt 0:07:30]} 10. Bxd4 {[%emt 0:02:30]} d6 {[%emt 0:00:30]} 11. h3 {[%emt 0:13:30]} e5 {[%emt 0:02:30]} 12. Be3 {[%emt 0:01:30]} Be6 {[%emt 0:00:30]} 13. g4 {[%emt 0:02:30]} Rc8 {[%emt 0:01:30]} 14. g5 {[%emt 0:07:30]} Nd7 {[%emt 0:00:30]} 15. Kb1 {[%emt 0:00:30]} b5 {[%emt 0:01:30]} 16. Rc1 {[%emt 0:03:30]} Qa5 {[%emt 0:03:30]} 17. Nd5 {[%emt 0:01:30]} Bxd5 {[%emt 0:00:30]} 18. exd5 {[%emt 0:00:30]} Nb6 {[%emt 0:01:30]} 19. Bxb6 {[%emt 0:05:30]} Qxb6 {[%emt 0:00:30]} 20. h4 {[%emt 0:00:00]} Rc5 {[%emt 0:02:30]} 21. Bd3 {[%emt 0:02:00]} b4 {[%emt 0:01:30]} 22. Qe4 {[%emt 0:12:30]} Qb7 {[%emt 0:04:30]} 23. Bc4 {[%emt 0:00:30]} O-O {[%emt 0:01:30]} 24. Rcg1 {[%emt 0:12:30]} Rfc8 {[%emt 0:01:30]} 25. b3 {[%emt 0:07:30]} Qd7 {[%emt 0:02:30]} 26. Bd3 {[%emt 0:04:37]} g6 {[%emt 0:00:30]} 27. h5 {[%emt 0:00:10]} Bf8 {[%emt 0:01:30]} 28. Rg3 {[%emt 0:10:37]} Bg7 {[%emt 0:03:30]} 29. Rf3 {[%emt 0:01:37]} Qc7 {[%emt 0:01:30]} 30. hxg6 {[%emt 0:01:14]} hxg6 {[%emt 0:00:00]} 31. Bc4 {[%emt 0:03:29]} Qa5 {[%emt 0:01:00]} 32. Rf6 {[%emt 0:01:10]} Qa3 {[%emt 0:01:30]} 33. Qf3 {[%emt 0:00:32]} Ra5 {[%emt 0:11:30]} 34. Qh3 {[%emt 0:00:09]} Qxa2+ {[%emt 0:00:30]} 35. Kc1 {[%emt 0:00:01]} Qa1+ {[%emt 0:01:30]} 36. Kd2 {[%emt 0:00:01]} Qc3+ {[%emt 0:00:00]} 37. Qxc3 {[%emt 0:00:12]} bxc3+ {[%emt 0:00:00]} 38. Kd3 {[%emt 0:00:06]} Bxf6 {[%emt 0:00:00]} 39. gxf6 {[%emt 0:00:01]} Rac5 {[%emt 0:03:00]} 40. Rd1 {[%emt 0:00:00]} a5 {[%emt 0:00:00]} 41. Ra1 {[%emt 0:09:04]} e4+ {[%emt 0:04:00]} 42. Kxe4 {[%emt 0:02:30]} Re8+ {[%emt 0:01:30]} 43. Kd4 {[%emt 0:02:30]} Re5 {[%emt 0:03:30]} 44. b4 {[%emt 0:00:30]} axb4 {[%emt 0:00:30]} 45. Ra8+ {[%emt 0:00:30]} Kh7 {[%emt 0:00:30]} 46. Rd8 {[%emt 0:00:00]} Rf5 {[%emt 0:00:30]} 47. Rxd6 {[%emt 0:00:00]} Rc7 {[%emt 0:00:30]} 48. Bb3 {[%emt 0:01:30]} Rxf2 {[%emt 0:01:30]} 49. Rb6 {[%emt 0:00:30]} g5 {[%emt 0:01:30]} 50. d6 {[%emt 0:01:30]} Rd7 {[%emt 0:00:30]} 51. Ba4 {[%emt 0:00:30]} Rd8 {[%emt 0:02:30]} 52. d7 {[%emt 0:00:30]} g4 {[%emt 0:00:30]} 53. Ke5 {[%emt 0:00:00]} Kg6 {[%emt 0:03:30]} 54. Rxb4 {[%emt 0:00:00]} Rf5+ {[%emt 0:00:30]} 55. Kd6 {[%emt 0:00:30]} g3 {[%emt 0:00:30]} 56. Bc6 {[%emt 0:01:45]} Rg5 {[%emt 0:08:30]} 57. Bg2 {[%emt 0:06:04]} Kxf6 {[%emt 0:03:30]} 58. Rc4 {[%emt 0:03:02]} Re5 {[%emt 0:04:30]} 59. Rxc3 {[%emt 0:02:40]} Re6+ {[%emt 0:01:30]} 60. Kc7 {[%emt 0:00:12]} Ke7 {[%emt 0:00:30]} 61. Bc6 {[%emt 0:00:30]} Rg8 {[%emt 0:08:30]} 62. Bb7 {[%emt 0:05:18]} Re2 {[%emt 0:01:30]} 63. Bc6 {[%emt 0:03:19]} g2 {[%emt 0:21:20]} 64. Bxg2 {[%emt 0:00:07]} Rexg2 {[%emt 0:00:05]} 65. Re3+ {[%emt 0:00:20]} Kf6 {[%emt 0:00:07]} 66. d8=Q+ {[%emt 0:00:47]} Rxd8 {[%emt 0:00:03]} 67. Kxd8 {[%emt 0:00:03]} Rxc2 {[%emt 0:00:09]} 68. Ke8 {[%emt 0:01:37]} Rf2 {[%emt 0:01:26]} 69. Kf8 {[%emt 0:01:18]} Kg5 {[%emt 0:00:45]} 70. Ke7 {[%emt 0:00:45]} f5 {[%emt 0:00:17]} 71. Ke6 {[%emt 0:00:07]} f4 {[%emt 0:00:18]} 72. Re1 {[%emt 0:00:01]} f3 {[%emt 0:00:24]} 73. Kd5 {[%emt 0:00:16]} Rd2+ {[%emt 0:00:41]} 74. Kc4 {[%emt 0:00:10]} Kf4 {[%emt 0:00:37]} 75. Kc3 {[%emt 0:00:06]} Rd8 {[%emt 0:00:18]} 76. Kc2 {[%emt 0:00:08]} Kg3 {[%emt 0:00:14]} 77. Re7 {[%emt 0:00:04]} Kg2 {[%emt 0:02:31]} 78. Rg7+ {[%emt 0:00:04]} Kf1 {[%emt 0:00:08]} 79. Kc1 {[%emt 0:00:04]} Rd4 {[%emt 0:01:01]} 80. Kc2 {[%emt 0:00:02]} Kf2 {[%emt 0:00:20]} 81. Rg8 {[%emt 0:00:04]} Ke3 {[%emt 0:01:44]} 82. Re8+ {[%emt 0:00:05]} Kf4 {[%emt 0:00:09]} 83. Rf8+ {[%emt 0:00:04]} Kg3 {[%emt 0:00:18]} 84. Rg8+ {[%emt 0:00:03]} Rg4 {[%emt 0:00:42]} 85. Rf8 {[%emt 0:00:04]} Kg2 {[%emt 0:00:29]} 86. Kd2 {[%emt 0:00:08]} f2 {[%emt 0:00:32]} 87. Ke2 {[%emt 0:00:05]} Re4+ {[%emt 0:00:07]} 88. Kd3 {[%emt 0:00:01]} Re1 {[%emt 0:00:16]} 89. Rg8+ {[%emt 0:00:02]} Kh3 {[%emt 0:00:20]} 90. Rh8+ {[%emt 0:00:02]} Kg4 {[%emt 0:00:14]} 91. Rg8+ {[%emt 0:00:02]} Kh5 {[%emt 0:00:10]} 0-1

[Event "25th Zadar Open 2018"]
[Site "Zadar"]
[Date "2018.12.16"]
[Round "3.21"]
[White "Blagojevic, Tijana"]
[Black "Nester, Ihor"]
[Result "1/2-1/2"]
[ECO "C47"]
[WhiteElo "2208"]
[BlackElo "2337"]
[Annotator "NA"]
[PlyCount "134"]
[EventDate "2018.12.15"]
[EventType "swiss"]
[EventCountry "CRO"]
[SourceTitle "playchess.com"]
[Source "ChessBase"]
[SourceQuality "1"]
[TimeControl "40/5400+30:1800+30"]

1. e4 {[%emt 0:00:30]} e5 {[%emt 0:03:30]} 2. Nf3 {[%emt 0:01:30]} Nc6 {[%emt 0:00:30]} 3. Nc3 {[%emt 0:00:30]} Nf6 {[%emt 0:00:00]} 4. d4 {[%emt 0:00:00]} Bb4 {[%emt 0:00:00]} 5. Nxe5 {[%emt 0:00:00]} Qe7 {[%emt 0:00:30]} 6. Qd3 {[%emt 0:00:30]} Nxd4 {[%emt 0:01:30] C47: Scotch Four Knights and Four Knights with 4 g3} 7. Qxd4 {[%emt 0:00:30]} Bc5 {[%emt 0:00:00]} 8. Qd3 {[%emt 0:00:00]} Qxe5 {[%emt 0:00:00]} 9. f4 {[%emt 0:00:00]} Qd4 {[%emt 0:00:30]} 10. Qxd4 {[%emt 0:00:30]} Bxd4 {[%emt 0:00:30]} 11. Nb5 $146 {[%emt 0:00:30]} ({Predecessor:} 11. e5 Bxc3+ 12. bxc3 Ne4 13. c4 b6 14. Bd3 {0-1 (45) Jahnz,F (2186)-Stern,R (2495) Berlin 2010}) 11... Bb6 {[%emt 0:00:30]} 12. e5 {[%emt 0:00:30]} Ne4 {[%emt 0:08:30]} 13. Bd3 {[%emt 0:01:30]} Nc5 {[%emt 0:01:30]} 14. Ke2 {[%emt 0:08:30]} (14. Be2 $11 {remains equal.}) 14... Nxd3 {[%emt 0:05:30]} 15. cxd3 {[%emt 0:00:00]} a6 {[%emt 0:00:30]} 16. Nc3 {[%emt 0:00:00]} d6 {[%emt 0:01:30]} 17. exd6 {[%emt 0:07:30]} Bg4+ {[%emt 0:00:30]} 18. Kd2 {[%emt 0:00:30]} O-O-O {[%emt 0:00:30]} 19. h3 {[%emt 0:00:30]} Be6 {[%emt 0:00:30]} 20. dxc7 {[%emt 0:03:30]} Bxc7 {[%emt 0:00:30]} 21. Kc2 {[%emt 0:01:30]} Bf5 {[%emt 0:02:30]} 22. Ne4 {[%emt 0:00:30]} Rhe8 {[%emt 0:09:30]} 23. Re1 {[%emt 0:02:30]} h5 {[%emt 0:09:30]} 24. Bd2 {[%emt 0:02:30]} Re6 {[%emt 0:00:30]} 25. Rad1 {[%emt 0:01:30]} Rc6+ {[%emt 0:00:30]} 26. Bc3 {[%emt 0:00:30]} Bxf4 {[%emt 0:03:30]} 27. Rf1 {[%emt 0:00:30]} Bxe4 {[%emt 0:03:30]} 28. dxe4 {[%emt 0:01:30]} g5 {[%emt 0:01:30]} 29. Rxd8+ {[%emt 0:02:30]} Kxd8 {[%emt 0:00:00]} 30. g3 {[%emt 0:01:30]} Bxg3 {[%emt 0:02:00]} 31. Rxf7 {[%emt 0:00:00]} b5 {[%emt 0:08:30]} 32. Kd3 {[%emt 0:01:00]} Ke8 {[%emt 0:03:30]} 33. Rh7 {[%emt 0:01:30]} h4 {[%emt 0:01:30]} 34. e5 {[%emt 0:04:30]} Rc4 {[%emt 0:08:30] [#]} 35. Bd4 $1 {[%emt 0:10:30]} Rc1 $18 {[%emt 0:15:29]} 36. Ke4 {[%emt 0:02:30]} Rf1 {[%emt 0:03:43]} 37. Kd5 {[%emt 0:13:30]} Rf7 {[%emt 0:00:26]} 38. Rh8+ {[%emt 0:01:30]} Rf8 {[%emt 0:00:01]} 39. Rh6 {[%emt 0:03:30]} Bf2 {[%emt 0:05:30]} 40. Bxf2 {[%emt 0:00:00]} Rxf2 {[%emt 0:00:00]} 41. Rxa6 {[%emt 0:17:00]} Rxb2 {[%emt 0:00:21]} 42. Ke6 {[%emt 0:00:30]} Kd8 {[%emt 0:13:30]} 43. Ra8+ {[%emt 0:02:30]} Kc7 {[%emt 0:00:00]} 44. Kf6 {[%emt 0:02:30]} g4 {[%emt 0:01:00]} 45. hxg4 {[%emt 0:00:30]} h3 {[%emt 0:00:00]} 46. Rh8 {[%emt 0:00:30]} h2 {[%emt 0:00:00]} 47. a3 {[%emt 0:00:00]} Rf2+ {[%emt 0:01:30]} 48. Ke7 {[%emt 0:01:00]} Rg2 {[%emt 0:00:30]} 49. e6 {[%emt 0:00:30]} Rxg4 {[%emt 0:00:30]} 50. Rxh2 {[%emt 0:00:00]} Rg3 {[%emt 0:00:30]} 51. Rh5 {[%emt 0:04:00]} Kc6 {[%emt 0:00:30]} 52. Kf6 {[%emt 0:00:30]} Rxa3 {[%emt 0:01:41]} 53. e7 {[%emt 0:01:30]} Rf3+ {[%emt 0:05:16]} 54. Ke6 {[%emt 0:00:30]} Re3+ {[%emt 0:00:04]} 55. Kf7 {[%emt 0:00:30]} Rf3+ {[%emt 0:00:07]} 56. Ke8 {[%emt 0:00:30]} b4 {[%emt 0:00:09]} 57. Kd8 {[%emt 0:02:30]} Rd3+ {[%emt 0:00:13]} 58. Kc8 {[%emt 0:00:30]} Re3 {[%emt 0:00:14]} 59. Rh6+ {[%emt 0:00:30]} Kc5 {[%emt 0:02:19]} 60. Kd7 {[%emt 0:00:30]} b3 {[%emt 0:05:20]} 61. e8=Q {[%emt 0:01:30]} Rxe8 {[%emt 0:00:06]} 62. Kxe8 {[%emt 0:00:30]} b2 {[%emt 0:00:11]} 63. Rh1 {[%emt 0:00:00]} Kc4 {[%emt 0:00:05]} 64. Ke7 {[%emt 0:00:00]} Kb3 {[%emt 0:00:03]} 65. Kd6 {[%emt 0:00:30]} Ka2 {[%emt 0:00:06]} 66. Kc5 {[%emt 0:00:00]} b1=Q {[%emt 0:00:01]} 67. Rxb1 {[%emt 0:00:00]} Kxb1 {[%emt 0:00:04]} 1/2-1/2

[Event "25th Zadar Open 2018"]
[Site "Zadar"]
[Date "2018.12.16"]
[Round "3.22"]
[White "Volotovsky, Kirill"]
[Black "Muha, Miljenko"]
[Result "1-0"]
[ECO "A11"]
[WhiteElo "2179"]
[BlackElo "2334"]
[Annotator "NA"]
[PlyCount "127"]
[EventDate "2018.12.15"]
[EventType "swiss"]
[EventCountry "CRO"]
[SourceTitle "playchess.com"]
[Source "ChessBase"]
[SourceQuality "1"]
[TimeControl "40/5400+30:1800+30"]

1. Nf3 {[%emt 0:02:30]} d5 {[%emt 0:00:30]} 2. c4 {[%emt 0:00:30]} c6 {[%emt 0:02:30]} 3. g3 {[%emt 0:00:30]} Nf6 {[%emt 0:01:30]} 4. Bg2 {[%emt 0:00:30]} Bg4 {[%emt 0:00:30]} 5. Ne5 {[%emt 0:00:30]} Be6 {[%emt 0:08:30]} 6. cxd5 {[%emt 0:00:00]} Bxd5 {[%emt 0:01:30]} 7. Nf3 {[%emt 0:00:00]} c5 {[%emt 0:02:30]} 8. Nc3 {[%emt 0:00:30]} Bc6 {[%emt 0:00:30]} 9. d3 {[%emt 0:02:30]} e6 {[%emt 0:00:30]} 10. O-O {[%emt 0:00:30]} Be7 {[%emt 0:00:30]} 11. e4 {[%emt 0:00:30]} O-O {[%emt 0:03:30]} 12. Qe2 {[%emt 0:01:30]} Be8 {[%emt 0:13:30]} 13. Rd1 {[%emt 0:13:30]} Nc6 {[%emt 0:01:30]} 14. Bf4 {[%emt 0:07:30]} Nd4 {[%emt 0:04:30]} 15. Qd2 {[%emt 0:03:30]} Bc6 {[%emt 0:08:30]} 16. Rac1 {[%emt 0:03:30]} Nd7 {[%emt 0:04:30]} 17. Be3 {[%emt 0:03:30]} e5 {[%emt 0:03:30]} 18. Ne2 {[%emt 0:11:30]} a5 {[%emt 0:03:30]} 19. Ne1 {[%emt 0:01:30]} Kh8 {[%emt 0:09:30]} 20. f4 {[%emt 0:01:30]} f5 {[%emt 0:05:30]} 21. fxe5 {[%emt 0:10:30]} Nxe5 {[%emt 0:01:30]} 22. Nxd4 {[%emt 0:01:30]} cxd4 {[%emt 0:00:30]} 23. Bf4 {[%emt 0:00:30]} Ng4 {[%emt 0:02:30]} 24. exf5 {[%emt 0:02:30]} Ne3 {[%emt 0:01:21]} 25. Bxe3 {[%emt 0:03:30]} dxe3 {[%emt 0:00:04]} 26. Qe2 {[%emt 0:03:30]} Rxf5 {[%emt 0:00:20]} 27. Bxc6 {[%emt 0:09:09]} bxc6 {[%emt 0:00:15]} 28. Ng2 {[%emt 0:01:52]} Bg5 {[%emt 0:01:50]} 29. Qg4 {[%emt 0:08:06]} Qd5 {[%emt 0:04:45]} 30. Rc2 {[%emt 0:00:52]} Raf8 {[%emt 0:02:13]} 31. h4 {[%emt 0:02:14]} Rf2 {[%emt 0:01:32]} 32. Rxf2 {[%emt 0:00:29]} exf2+ {[%emt 0:00:41]} 33. Kf1 {[%emt 0:01:13]} Bh6 {[%emt 0:00:27]} 34. b3 {[%emt 0:01:38]} Qe5 {[%emt 0:01:51]} 35. d4 {[%emt 0:01:14]} Qd6 {[%emt 0:00:09]} 36. Rd3 {[%emt 0:01:15]} Qd5 {[%emt 0:01:24]} 37. Qe2 {[%emt 0:01:47]} Kg8 {[%emt 0:04:46]} 38. Rd1 {[%emt 0:00:31]} Qd6 {[%emt 0:00:48]} 39. Qe5 {[%emt 0:00:28]} Qd7 {[%emt 0:00:36]} 40. d5 {[%emt 0:00:00]} Re8 {[%emt 0:00:00]} 41. Qd4 {[%emt 0:08:42]} Qh3 {[%emt 0:04:58]} 42. dxc6 {[%emt 0:06:16]} Rf8 {[%emt 0:15:58]} 43. Qd5+ {[%emt 0:01:49]} Kh8 {[%emt 0:00:03]} 44. Ke2 {[%emt 0:00:21]} Qxg3 {[%emt 0:04:10]} 45. Qe4 {[%emt 0:03:06]} Qb8 {[%emt 0:05:25]} 46. Kf1 {[%emt 0:01:46]} Qb5+ {[%emt 0:01:05]} 47. Rd3 {[%emt 0:05:23]} Qc5 {[%emt 0:05:04]} 48. Rf3 {[%emt 0:03:03]} Qc1+ {[%emt 0:00:29]} 49. Kxf2 {[%emt 0:00:18]} Qc5+ {[%emt 0:00:10]} 50. Kg3 {[%emt 0:01:57]} Qd6+ {[%emt 0:00:01]} 51. Kh3 {[%emt 0:01:24]} Rxf3+ {[%emt 0:01:10]} 52. Qxf3 {[%emt 0:00:01]} Kg8 {[%emt 0:00:18]} 53. Qe4 {[%emt 0:01:04]} Kf8 {[%emt 0:00:32]} 54. Qc4 {[%emt 0:00:40]} Qc7 {[%emt 0:00:44]} 55. Qe6 {[%emt 0:00:21]} Bd2 {[%emt 0:01:11]} 56. Qf5+ {[%emt 0:01:01]} Ke8 {[%emt 0:00:20]} 57. Qh5+ {[%emt 0:00:11]} Kf8 {[%emt 0:01:08]} 58. Qf3+ {[%emt 0:00:06]} Ke8 {[%emt 0:00:47]} 59. Qe2+ {[%emt 0:00:07]} Kf7 {[%emt 0:00:17]} 60. Qxd2 {[%emt 0:00:54]} Qxc6 {[%emt 0:00:01]} 61. Qxa5 {[%emt 0:00:59]} Qe6+ {[%emt 0:00:02]} 62. Kg3 {[%emt 0:00:52]} Qd6+ {[%emt 0:00:39]} 63. Nf4 {[%emt 0:00:13]} Kf8 {[%emt 0:01:20]} 64. Qc5 {[%emt 0:00:07]} 1-0

[Event "25th Zadar Open 2018"]
[Site "Zadar"]
[Date "2018.12.16"]
[Round "3.24"]
[White "Spalir, Jernej"]
[Black "Trippold, Denise"]
[Result "1-0"]
[ECO "E12"]
[WhiteElo "2336"]
[BlackElo "2211"]
[Annotator "NA"]
[PlyCount "83"]
[EventDate "2018.12.15"]
[EventType "swiss"]
[EventCountry "CRO"]
[SourceTitle "playchess.com"]
[Source "ChessBase"]
[SourceQuality "1"]
[TimeControl "40/5400+30:1800+30"]

1. d4 {[%emt 0:00:30]} Nf6 {[%emt 0:00:30]} 2. c4 {[%emt 0:00:30]} e6 {[%emt 0:00:00]} 3. Nf3 {[%emt 0:00:30]} b6 {[%emt 0:00:00]} 4. a3 {[%emt 0:00:00]} Ba6 {[%emt 0:00:30]} 5. Qb3 {[%emt 0:00:00]} Bb7 {[%emt 0:04:30]} 6. Nc3 {[%emt 0:01:30]} d5 {[%emt 0:00:30]} 7. Bg5 {[%emt 0:04:30]} Be7 {[%emt 0:02:30]} 8. e3 {[%emt 0:02:30]} Nbd7 {[%emt 0:04:30]} 9. cxd5 {[%emt 0:04:30]} exd5 {[%emt 0:05:30]} 10. Be2 {[%emt 0:01:30]} O-O {[%emt 0:01:30]} 11. O-O {[%emt 0:00:30]} Re8 {[%emt 0:04:30]} 12. Rac1 {[%emt 0:05:30]} c6 {[%emt 0:08:30]} 13. Na2 {[%emt 0:08:30]} Ne4 {[%emt 0:13:30]} 14. Bxe7 {[%emt 0:02:30]} Qxe7 {[%emt 0:00:30]} 15. Nb4 {[%emt 0:00:30]} Rec8 {[%emt 0:11:30]} 16. Ba6 {[%emt 0:04:30]} Ndf6 {[%emt 0:02:30]} 17. Bxb7 {[%emt 0:09:30]} Qxb7 {[%emt 0:02:30]} 18. Nd3 {[%emt 0:00:30]} Ne8 {[%emt 0:08:30]} 19. Rc2 {[%emt 0:02:30]} N8d6 {[%emt 0:01:30]} 20. Rfc1 {[%emt 0:02:30]} Nc4 {[%emt 0:13:41]} 21. Qa2 {[%emt 0:04:30]} Rab8 {[%emt 0:03:51]} 22. b3 {[%emt 0:06:30]} Ncd6 {[%emt 0:03:15]} 23. Nfe5 {[%emt 0:00:30]} c5 {[%emt 0:02:30]} 24. f3 {[%emt 0:01:30]} c4 {[%emt 0:03:02]} 25. bxc4 {[%emt 0:00:30]} dxc4 {[%emt 0:00:07]} 26. Nxc4 {[%emt 0:03:30]} Nxc4 {[%emt 0:00:02]} 27. Rxc4 {[%emt 0:00:30]} Rxc4 {[%emt 0:02:19]} 28. Qxc4 {[%emt 0:00:30]} Nd6 {[%emt 0:00:15]} 29. Qb4 {[%emt 0:02:30]} Rd8 {[%emt 0:00:52]} 30. e4 {[%emt 0:01:30]} g6 {[%emt 0:00:17]} 31. d5 {[%emt 0:00:00]} Qa6 {[%emt 0:01:06]} 32. Ne5 {[%emt 0:00:00]} Qe2 {[%emt 0:00:29]} 33. Qe1 {[%emt 0:04:30]} Qb2 {[%emt 0:00:14]} 34. Qc3 {[%emt 0:00:30]} Qa2 {[%emt 0:00:52]} 35. Ng4 {[%emt 0:04:30]} h5 {[%emt 0:00:28]} 36. Qf6 {[%emt 0:05:39]} Rd7 {[%emt 0:00:29]} 37. Ne5 {[%emt 0:00:24]} Qxa3 {[%emt 0:00:11]} 38. Rc6 {[%emt 0:03:06]} Qa1+ {[%emt 0:00:44]} 39. Kf2 {[%emt 0:00:06]} Qd4+ {[%emt 0:00:39]} 40. Kg3 {[%emt 0:00:00]} h4+ {[%emt 0:00:00]} 41. Kh3 {[%emt 0:01:45]} Ne8 {[%emt 0:06:37]} 42. Rc8 {[%emt 0:00:30]} 1-0

[Event "25th Zadar Open 2018"]
[Site "Zadar"]
[Date "2018.12.16"]
[Round "3.25"]
[White "Sapale Saloni"]
[Black "Biliskov, Vjekoslav"]
[Result "0-1"]
[ECO "B28"]
[WhiteElo "2187"]
[BlackElo "2313"]
[Annotator "NA"]
[PlyCount "112"]
[EventDate "2018.12.15"]
[EventType "swiss"]
[EventCountry "CRO"]
[SourceTitle "playchess.com"]
[Source "ChessBase"]
[SourceQuality "1"]
[TimeControl "40/5400+30:1800+30"]

1. e4 {[%emt 0:00:30]} c5 {[%emt 0:00:30]} 2. Nf3 {[%emt 0:00:30]} a6 {[%emt 0:00:30]} 3. c3 {[%emt 0:00:30]} d5 {[%emt 0:00:30]} 4. exd5 {[%emt 0:00:30]} Qxd5 {[%emt 0:00:00]} 5. d4 {[%emt 0:00:30]} Nf6 {[%emt 0:01:00]} 6. Be3 {[%emt 0:01:30]} cxd4 {[%emt 0:00:30]} 7. cxd4 {[%emt 0:00:30]} g6 {[%emt 0:01:30]} 8. Nc3 {[%emt 0:00:30]} Qd6 {[%emt 0:00:30]} 9. Bc4 {[%emt 0:05:30]} Bg7 {[%emt 0:03:30]} 10. Qb3 {[%emt 0:07:30]} O-O {[%emt 0:01:30]} 11. Ne5 {[%emt 0:05:30]} e6 {[%emt 0:00:30]} 12. O-O {[%emt 0:01:30]} Nc6 {[%emt 0:09:30]} 13. Nxc6 {[%emt 0:03:30]} bxc6 {[%emt 0:00:30]} 14. Be2 {[%emt 0:03:30]} Rb8 {[%emt 0:06:30]} 15. Qc2 {[%emt 0:00:30]} Nd5 {[%emt 0:05:30]} 16. a3 {[%emt 0:11:30]} Nxe3 {[%emt 0:07:30]} 17. fxe3 {[%emt 0:00:30]} e5 {[%emt 0:00:30]} 18. Ne4 {[%emt 0:04:30]} Qe7 {[%emt 0:01:30]} 19. Rad1 {[%emt 0:12:30]} exd4 {[%emt 0:13:30]} 20. exd4 {[%emt 0:00:30]} Bf5 {[%emt 0:05:30]} 21. Rxf5 {[%emt 0:11:30]} gxf5 {[%emt 0:00:30]} 22. Ng3 {[%emt 0:00:30]} Rfe8 {[%emt 0:10:30]} 23. Bc4 {[%emt 0:01:30]} Qe3+ {[%emt 0:02:30]} 24. Kh1 {[%emt 0:00:30]} f4 {[%emt 0:02:30]} 25. Nf1 {[%emt 0:03:30]} Qe7 {[%emt 0:02:30]} 26. h3 {[%emt 0:06:58]} Red8 {[%emt 0:05:19]} 27. b3 {[%emt 0:06:29]} Rxd4 {[%emt 0:01:09]} 28. Rxd4 {[%emt 0:01:15]} Bxd4 {[%emt 0:00:07]} 29. Qf5 {[%emt 0:00:06]} Qf6 {[%emt 0:01:37]} 30. Qe4 {[%emt 0:00:44]} Ba7 {[%emt 0:05:38]} 31. Nd2 {[%emt 0:08:31]} Qa1+ {[%emt 0:02:28]} 32. Nf1 {[%emt 0:00:48]} Qd4 {[%emt 0:01:31]} 33. Qxd4 {[%emt 0:01:01]} Bxd4 {[%emt 0:00:07]} 34. Nd2 {[%emt 0:00:10]} a5 {[%emt 0:01:56]} 35. a4 {[%emt 0:00:19]} Re8 {[%emt 0:01:16]} 36. Nf3 {[%emt 0:00:18]} Bf2 {[%emt 0:01:20]} 37. Kh2 {[%emt 0:00:46]} Kg7 {[%emt 0:00:56]} 38. Kh1 {[%emt 0:00:46]} Rd8 {[%emt 0:01:04]} 39. Be2 {[%emt 0:00:44]} Kf6 {[%emt 0:01:13]} 40. Kh2 {[%emt 0:00:00]} Re8 {[%emt 0:00:00]} 41. Bc4 {[%emt 0:01:05]} Re3 {[%emt 0:04:19]} 42. h4 {[%emt 0:03:30]} h5 {[%emt 0:01:30]} 43. Nd2 {[%emt 0:04:30]} Re1 {[%emt 0:05:30]} 44. g3 {[%emt 0:01:30]} fxg3+ {[%emt 0:01:30]} 45. Kg2 {[%emt 0:00:30]} Rg1+ {[%emt 0:03:30]} 46. Kf3 {[%emt 0:00:00]} Be1 {[%emt 0:01:30]} 47. Ne4+ {[%emt 0:00:00]} Ke5 {[%emt 0:00:00]} 48. Ng5 {[%emt 0:00:30]} Bf2 {[%emt 0:03:07]} 49. Nxf7+ {[%emt 0:02:30]} Kd4 {[%emt 0:00:45]} 50. Nd6 {[%emt 0:01:30]} Ke5 {[%emt 0:03:09]} 51. Nf7+ {[%emt 0:01:30]} Kf6 {[%emt 0:00:15]} 52. Ng5 {[%emt 0:00:00]} Rc1 {[%emt 0:00:44]} 53. Ne4+ {[%emt 0:04:13]} Ke5 {[%emt 0:00:20]} 54. Nd2 {[%emt 0:00:12]} Rc3+ {[%emt 0:00:51]} 55. Kg2 {[%emt 0:00:07]} Kf4 {[%emt 0:00:51]} 56. Bf1 {[%emt 0:03:06]} Rc2 {[%emt 0:00:39]} 0-1

[Event "25th Zadar Open 2018"]
[Site "Zadar"]
[Date "2018.12.16"]
[Round "3.26"]
[White "Krstulovic, Alex"]
[Black "Ermeni, Avni"]
[Result "0-1"]
[ECO "A57"]
[WhiteElo "2313"]
[BlackElo "2183"]
[Annotator "NA"]
[PlyCount "86"]
[EventDate "2018.12.15"]
[EventType "swiss"]
[EventCountry "CRO"]
[SourceTitle "playchess.com"]
[Source "ChessBase"]
[SourceQuality "1"]
[TimeControl "40/5400+30:1800+30"]

1. d4 {[%emt 0:00:30]} Nf6 {[%emt 0:00:30]} 2. c4 {[%emt 0:00:30]} c5 {[%emt 0:00:00]} 3. d5 {[%emt 0:00:00]} b5 {[%emt 0:00:00]} 4. cxb5 {[%emt 0:00:00]} a6 {[%emt 0:00:00]} 5. bxa6 {[%emt 0:00:30]} g6 {[%emt 0:00:00]} 6. Nc3 {[%emt 0:00:30]} d6 {[%emt 0:00:00]} 7. e4 {[%emt 0:00:30]} Bg7 {[%emt 0:00:00]} 8. Nf3 {[%emt 0:00:30]} O-O {[%emt 0:00:30]} 9. a4 {[%emt 0:00:30]} Bxa6 {[%emt 0:00:30]} 10. Bxa6 {[%emt 0:01:30]} Nxa6 {[%emt 0:00:00]} 11. O-O {[%emt 0:00:30]} Qb6 {[%emt 0:04:00]} 12. Nd2 {[%emt 0:09:30]} Nc7 {[%emt 0:06:30]} 13. Rb1 {[%emt 0:06:30]} Nd7 {[%emt 0:08:30]} 14. Qc2 {[%emt 0:03:30]} Qb4 {[%emt 0:00:30]} 15. Ra1 {[%emt 0:09:30]} Rfb8 {[%emt 0:10:30]} 16. Ra3 {[%emt 0:03:30]} Qa5 {[%emt 0:11:30]} 17. Nc4 {[%emt 0:05:30]} Qa6 {[%emt 0:05:30]} 18. b3 {[%emt 0:06:30]} Ne5 {[%emt 0:00:30]} 19. Nxe5 {[%emt 0:09:30]} Bxe5 {[%emt 0:05:30]} 20. Bd2 {[%emt 0:01:30]} Bxh2+ {[%emt 0:02:30]} 21. Kxh2 {[%emt 0:00:30]} Qxf1 {[%emt 0:00:30]} 22. Be3 {[%emt 0:05:30]} Na6 {[%emt 0:07:30]} 23. Qb2 {[%emt 0:08:30]} Nb4 {[%emt 0:05:30]} 24. Ra1 {[%emt 0:01:30]} Qd3 {[%emt 0:03:30]} 25. Rc1 {[%emt 0:00:30]} Qa6 {[%emt 0:01:30]} 26. Rd1 {[%emt 0:00:30]} Nd3 {[%emt 0:07:30]} 27. Qc2 {[%emt 0:00:30]} Ne5 {[%emt 0:00:30]} 28. Bg5 {[%emt 0:01:30]} f6 {[%emt 0:01:35]} 29. Bf4 {[%emt 0:00:30]} c4 {[%emt 0:00:36]} 30. bxc4 {[%emt 0:00:00]} Qxc4 {[%emt 0:02:22]} 31. Bxe5 {[%emt 0:00:00]} fxe5 {[%emt 0:00:10]} 32. Qd2 {[%emt 0:02:30]} Rc8 {[%emt 0:07:44]} 33. Rc1 {[%emt 0:00:30]} Qd4 {[%emt 0:00:12]} 34. Qe1 {[%emt 0:05:29]} Rc5 {[%emt 0:01:22]} 35. f3 {[%emt 0:02:44]} Rac8 {[%emt 0:01:11]} 36. Qh4 {[%emt 0:00:05]} Qd2 {[%emt 0:03:59]} 37. Qxe7 {[%emt 0:00:25]} Qh6+ {[%emt 0:01:43]} 38. Kg3 {[%emt 0:00:00]} Qf4+ {[%emt 0:00:00]} 39. Kh3 {[%emt 0:00:05]} Qh6+ {[%emt 0:00:08]} 40. Kg3 {[%emt 0:00:00]} Qf4+ {[%emt 0:00:00]} 41. Kh3 {[%emt 0:01:12]} Rxc3 {[%emt 0:02:58]} 42. Rxc3 {[%emt 0:00:30]} Rxc3 {[%emt 0:00:30]} 43. Qxd6 {[%emt 0:00:30]} Rc1 {[%emt 0:04:30]} 0-1